bitfinex-derivatives/quotes_ETHF0:USTF0_20250112
["timestamp","ask_amount","ask_price","bid_price","bid_amount"]
[1736704328246,0.4796,3294.0,3293.9,0.2126]
[1736704328645,5.87486982,3294.0,3293.3,3.2078]
[1736704328850,4.20426982,3293.6,3293.2,1.20911982]
[1736704329047,1.3928,3293.5,3293.2,0.21265]
[1736704329356,1.3928,3293.5,3293.4,1.20910982]
[1736704329850,3.2078,3293.6,3293.5,0.21263]
[1736704330049,3.2078,3293.6,3293.5,1.12193]
[1736704330250,3.2078,3293.6,3293.5,1.59263]
[1736704330449,0.8975,3293.9,3293.5,1.38]
[1736704330644,0.8975,3293.9,3293.7,1.20908982]
[1736704330854,0.8975,3293.9,3293.7,0.99646982]
[1736704331157,0.8975,3293.9,3293.7,1.20908982]
[1736704331341,0.8975,3293.9,3293.8,0.21261]
[1736704332248,0.8975,3293.9,3293.7,0.99646982]
[1736704332647,0.8975,3293.9,3293.7,1.20908982]
[1736704332856,0.8975,3293.9,3293.7,0.99646982]
[1736704333258,1.3347,3293.9,3293.7,0.99646982]
[1736704333556,1.3347,3293.9,3293.7,0.21262]
[1736704335069,1.3347,3293.9,3293.6,0.21262]
[1736704335467,1.3347,3293.9,3293.5,1.38]
[1736704335668,0.21262,3293.8,3293.5,0.4707]
[1736704336167,4.5425,3293.9,3293.5,0.4707]
[1736704336466,0.21263,3293.6,3293.3,0.21264]
[1736704336652,4.5425,3293.9,3293.2,0.68115]
[1736704336860,0.68384,3293.5,3293.2,0.4685]
[1736704337058,0.9302,3293.4,3293.2,0.4685]
[1736704337567,1.14284,3293.4,3293.2,0.4685]
[1736704337863,0.9302,3293.4,3293.2,0.68115]
[1736704338261,1.14284,3293.4,3293.2,0.68115]
[1736704338466,1.14284,3293.4,3293.2,0.4685]
[1736704338769,1.14284,3293.4,3293.2,0.68115]
[1736704339067,0.9302,3293.4,3293.2,0.4685]
[1736704339261,0.9302,3293.4,3293.3,0.21265]
[1736704339865,1.14284,3293.4,3293.3,0.21265]
[1736704341369,0.21265,3293.3,3293.2,0.68115]
[1736704343071,0.21263,3293.7,3293.6,0.21262]
[1736704343265,1.09612,3293.8,3293.7,0.21262]
[1736704343569,0.21262,3293.8,3293.7,0.21262]
[1736704343871,0.21262,3293.7,3293.6,0.21263]
[1736704344171,0.21262,3293.8,3293.6,0.21263]
[1736704344566,0.4752,3293.7,3293.6,0.21263]
[1736704346171,1.0961,3294.0,3293.7,0.21262]
[1736704346674,0.21261,3293.9,3293.6,0.21262]
[1736704346876,1.0961,3294.0,3293.7,0.21262]
[1736704347376,0.8835,3294.0,3293.4,3.2078]
[1736704347574,0.8835,3294.0,3293.8,0.21261]
[1736704347770,0.8835,3294.0,3293.4,3.2078]
[1736704347977,0.4768,3294.1,3294.0,0.2126]
[1736704350672,0.4768,3294.1,3293.9,0.21261]
[1736704350867,0.4768,3294.1,3293.8,3.42041]
[1736704351071,1.3659,3294.1,3293.9,0.21261]
[1736704353575,1.3659,3294.1,3293.7,0.21262]
[1736704353776,0.2126,3294.0,3293.6,3.2078]
[1736704354081,1.3659,3294.1,3293.2,2.06141434]
[1736704354082,3.2078,3293.7,3293.2,3.2078]
[1736704354283,0.21264,3293.5,3293.2,3.42045]
[1736704354482,1.58603,3293.6,3293.2,3.42045]
[1736704354683,1.58603,3293.6,3293.3,0.21265]
[1736704356383,1.58603,3293.6,3293.4,0.21264]
[1736704356578,1.3734,3293.6,3293.4,0.21264]
[1736704356778,1.58603,3293.6,3293.3,0.21264]
[1736704358587,1.3734,3293.6,3293.0,3.2078]
[1736704358782,0.21264,3293.4,3293.1,0.21266]
[1736704359089,1.3734,3293.6,3293.0,3.2078]
[1736704359277,0.21266,3293.2,3293.1,0.21266]
[1736704359880,0.21266,3293.2,3293.0,3.86586]
[1736704360081,1.339,3293.1,3293.0,3.86586]
[1736704363880,0.21266,3293.2,3293.1,0.21266]
[1736704364085,0.21265,3293.3,3293.2,0.21265]
[1736704365292,0.21266,3293.2,3293.1,0.21266]
[1736704366192,0.21265,3293.3,3293.2,0.21265]
[1736704366388,0.21266,3293.1,3293.0,3.86586]
[1736704366589,1.3903,3293.6,3293.0,3.86586]
[1736704366590,0.4475,3293.2,3293.1,0.21266]
[1736704369297,0.66015,3293.2,3293.1,0.21266]
[1736704369489,0.9428,3293.6,3293.1,0.21266]
[1736704369684,0.4709,3293.5,3293.0,3.6532]
[1736704369993,0.21265,3293.4,3293.2,0.21265]
[1736704370397,0.21264,3293.4,3293.2,0.21265]
[1736704373998,0.4709,3293.5,3293.2,0.21265]
[1736704373999,0.68354,3293.5,3293.2,0.21265]
[1736704375090,0.21264,3293.4,3293.2,0.21265]
[1736704377598,0.21264,3293.4,3293.1,0.99703219]
[1736704377902,0.21264,3293.4,3293.1,1.20969219]
[1736704378594,0.4709,3293.5,3293.1,1.20969219]
[1736704378796,0.21264,3293.4,3293.1,1.20969219]
[1736704379295,0.21264,3293.4,3293.2,0.21265]
[1736704379490,0.4709,3293.5,3293.2,0.21265]
[1736704379691,0.68354,3293.5,3293.2,0.21265]
[1736704380402,0.4709,3293.5,3293.1,1.20969219]
[1736704380605,0.21264,3293.4,3293.1,1.20969219]
[1736704380800,0.21264,3293.4,3293.2,0.21265]
[1736704381201,0.21264,3293.4,3293.1,1.20969219]
[1736704382306,0.4709,3293.5,3293.1,0.99703219]
[1736704382603,0.21264,3293.4,3293.1,1.20968219]
[1736704382808,0.4709,3293.5,3293.1,0.99703219]
[1736704382999,0.21265,3293.3,3293.1,0.99703219]
[1736704383199,0.21265,3293.3,3293.1,1.20969219]
[1736704384202,0.4709,3293.5,3293.1,0.99703219]
[1736704384503,0.21264,3293.4,3293.1,1.20969219]
[1736704385105,0.21265,3293.3,3293.1,1.20969219]
[1736704386501,0.21264,3293.4,3293.1,1.20969219]
[1736704388507,0.21264,3293.4,3293.2,0.21265]
[1736704388908,0.21264,3293.4,3293.2,0.1197125]
[1736704389408,0.21264,3293.4,3293.1,0.99703219]
[1736704389907,0.21264,3293.4,3293.2,0.21265]
[1736704390810,0.68354,3293.5,3293.3,0.21265]
[1736704391308,0.68354,3293.5,3293.4,0.4638]
[1736704391911,0.4709,3293.5,3293.4,0.4638]
[1736704392302,0.9428,3293.6,3293.4,0.4638]
[1736704392497,3.03792219,3309.0,3294.0,0.2126]
[1736704392498,0.21259,3294.3,3294.0,0.2126]
[1736704392703,0.4788,3294.2,3294.1,0.4638]
[1736704392901,0.69139,3294.2,3294.1,0.4638]
[1736704393107,1.63329,3294.2,3294.1,0.4638]
[1736704393313,1.4207,3294.2,3294.1,0.4638]
[1736704393906,1.63329,3294.2,3294.1,0.4638]
[1736704394203,0.2126,3294.1,3293.9,3.2078]
[1736704394406,1.20963219,3294.1,3293.8,0.4711]
[1736704394711,1.20963219,3294.1,3293.8,0.21261]
[1736704394915,0.99703219,3293.9,3293.6,0.4711]
[1736704395115,0.99703219,3293.9,3293.0,3.71366]
[1736704395116,0.99703219,3293.7,3293.3,0.99703219]
[1736704395317,0.8748,3293.6,3293.4,0.21264]
[1736704395912,0.8748,3293.6,3293.5,0.21263]
[1736704396510,0.8748,3293.6,3293.5,1.20966219]
[1736704402127,0.4483,3293.8,3293.5,0.99703219]
[1736704402315,0.8964,3293.9,3293.5,0.99703219]
[1736704402626,1.10901,3293.9,3293.6,1.58423]
[1736704403125,0.21262,3293.8,3293.6,0.4748]
[1736704404228,1.10901,3293.9,3293.6,0.68743]
[1736704404727,0.8964,3293.9,3293.6,0.4748]
[1736704404918,0.21262,3293.8,3293.6,0.4748]
[1736704407233,1.89343219,3293.9,3293.6,0.4748]
[1736704407432,1.10901,3293.9,3293.6,0.68743]
[1736704407826,1.654,3294.0,3293.7,0.99703219]
[1736704408134,0.4392,3294.3,3294.2,0.21259]
[1736704408325,0.449,3294.4,3294.3,0.21258]
[1736704410328,0.449,3294.4,3294.2,0.99703219]
[1736704410727,0.449,3294.4,3294.3,0.21258]
[1736704411732,0.449,3294.4,3294.2,0.99703219]
[1736704412829,0.449,3294.4,3294.3,0.21258]
[1736704413224,0.449,3294.4,3294.2,0.99703219]
[1736704413429,0.449,3294.4,3294.3,0.21258]
[1736704414031,0.449,3294.4,3294.2,0.99703219]
[1736704414330,0.449,3294.4,3294.2,1.20961219]
[1736704414724,0.449,3294.4,3294.3,0.21258]
[1736704415730,0.449,3294.4,3294.2,1.20962219]
[1736704416228,0.8783,3294.7,3294.5,0.21257]
[1736704416635,0.8783,3294.7,3294.4,0.99703219]
[1736704416830,0.8783,3294.7,3294.5,0.4344]
[1736704417029,1.87533219,3294.7,3294.2,3.2078]
[1736704417229,0.21257,3294.5,3294.2,4.41742219]
[1736704417430,0.4783,3294.4,3294.2,4.41742219]
[1736704420037,0.4783,3294.4,3294.3,0.21258]
[1736704421635,1.09086,3294.7,3294.3,0.21258]
[1736704421833,1.3201,3294.7,3294.4,1.20960219]
[1736704422335,1.3201,3294.7,3294.5,0.4479]
[1736704424330,1.3201,3294.7,3294.5,0.66047]
[1736704424935,1.3201,3294.7,3294.5,0.4479]
[1736704425136,1.3201,3294.7,3294.5,0.66046]
[1736704426644,1.3201,3294.7,3294.6,1.20959219]
[1736704426939,1.3201,3294.7,3294.6,0.68420544]
[1736704428641,1.3201,3294.7,3294.6,0.47164544]
[1736704429542,1.3201,3294.7,3294.6,0.68420544]
[1736704430343,1.3201,3294.7,3294.6,0.47164544]
[1736704430540,1.3201,3294.7,3294.5,0.36154375]
[1736704432435,1.3201,3294.7,3294.5,0.14897375]
[1736704432642,1.3201,3294.7,3294.6,0.21256]
[1736704433745,1.3201,3294.7,3294.5,0.14897375]
[1736704434043,0.21257,3294.6,3294.3,0.21258]
[1736704434243,0.99703219,3294.5,3294.2,3.2078]
[1736704434543,0.2126,3294.1,3293.7,0.99703219]
[1736704434845,0.9068,3294.0,3293.8,0.21261]
[1736704435047,1.3422,3294.0,3293.8,0.21261]
[1736704436147,1.3422,3294.0,3293.7,1.20965219]
[1736704436540,1.3422,3294.0,3293.5,7.42121922]
[1736704436541,0.21262,3293.8,3293.5,7.42121922]
[1736704436748,0.21262,3293.8,3293.5,7.20858922]
[1736704437543,4.20483219,3293.9,3293.5,7.20858922]
[1736704437741,0.21262,3293.8,3293.5,7.42121922]
[1736704438046,0.21262,3293.8,3293.6,0.99703219]
[1736704439649,0.21262,3293.8,3293.6,1.20966219]
[1736704439847,0.21262,3293.8,3293.6,0.99703219]
[1736704440349,0.21262,3293.8,3293.5,7.42121922]
[1736704442145,4.20483219,3293.9,3293.5,7.20858922]
[1736704442344,0.21263,3293.6,3293.5,7.20858922]
[1736704442546,1.20965219,3293.7,3293.5,7.20858922]
[1736704442843,0.4572,3293.6,3293.5,7.42121922]
[1736704445247,0.4572,3293.6,3293.5,7.86811922]
[1736704446854,0.4572,3293.6,3293.5,7.65548922]
[1736704447349,0.66983,3293.6,3293.5,7.20858922]
[1736704447648,0.4572,3293.6,3293.5,7.20858922]
[1736704447850,0.66983,3293.6,3293.3,0.21264]
[1736704448057,1.92883219,3293.5,3293.3,0.21264]
[1736704448259,0.9318,3293.5,3293.2,1.47093219]
[1736704448554,0.9318,3293.5,3293.4,0.21264]
[1736704449060,0.21265,3293.4,3293.1,0.21266]
[1736704449356,0.99703219,3293.3,3293.1,0.21266]
[1736704449752,0.4784,3293.2,3293.1,0.21266]
[1736704450257,0.4784,3293.2,3293.0,0.21266]
[1736704450453,0.99703219,3293.1,3293.0,0.21266]
[1736704450752,0.4784,3293.2,3293.1,0.21266]
[1736704452656,0.4784,3293.2,3293.0,0.21266]
[1736704453057,0.4784,3293.2,3292.9,0.99703219]
[1736704453257,0.4784,3293.2,3293.1,0.21266]
[1736704454555,3.11983219,3293.5,3293.2,0.21265]
[1736704454757,3.56143219,3293.5,3293.2,0.21265]
[1736704455054,3.77407219,3293.5,3293.2,0.21265]
[1736704455261,3.77407219,3293.5,3293.1,0.9043]
[1736704455557,3.77407219,3293.5,3293.2,0.21265]
[1736704455954,3.56143219,3293.5,3293.2,0.21265]
[1736704456358,3.56143219,3293.5,3293.1,0.9043]
[1736704456563,3.56143219,3293.5,3293.3,0.21265]
[1736704458258,0.99703219,3293.4,3291.7,1.4280429]
[1736704458455,0.99703219,3293.2,3293.1,0.21266]
[1736704458659,5.98484,3293.5,3293.2,0.21265]
[1736704458660,0.99703219,3293.4,3293.2,0.21265]
[1736704459363,0.99703219,3293.4,3293.0,0.21267]
[1736704459561,0.21265,3293.3,3293.0,0.21267]
[1736704460166,1.20968219,3293.4,3293.0,0.21267]
[1736704461260,0.99703219,3293.2,3293.0,0.21267]
[1736704461764,0.4778,3293.1,3293.0,0.21267]
[1736704463259,0.4778,3293.1,3292.8,0.21268]
[1736704463456,0.99703219,3292.9,3292.6,3.2078]
[1736704463652,1.20971219,3292.8,3292.6,3.42049]
[1736704463860,0.21269,3292.7,3292.6,3.2078]
[1736704464066,0.4778,3292.7,3292.6,3.2078]
[1736704464364,0.4778,3292.7,3292.2,0.21271]
[1736704464560,0.4778,3292.7,3292.0,0.44916829]
[1736704464561,1.20974219,3292.3,3292.0,0.66189829]
[1736704464763,1.3734,3292.2,3292.1,0.21272]
[1736704481769,1.3734,3292.2,3291.5,3.73971]
[1736704481969,1.3734,3292.2,3292.1,0.21272]
[1736704503488,0.53182,3292.1,3290.6,0.53206]
[1736704503695,0.99782188,3291.2,3290.7,0.951]
[1736704503989,1.191,3291.2,3290.7,1.94882188]
[1736704504194,1.191,3291.2,3291.1,0.21279]
[1736704504388,1.191,3291.2,3291.0,0.21279]
[1736704504584,1.191,3291.2,3291.1,0.21279]
[1736704506196,1.191,3291.4,3291.3,0.21278]
[1736704506385,3.2078,3291.5,3291.4,0.21277]
[1736704509397,0.99782188,3291.8,3291.3,0.99782188]
[1736704509600,1.191,3291.8,3291.3,0.99782188]
[1736704509805,1.191,3291.8,3291.7,1.21057188]
[1736704510699,3.2078,3292.0,3291.9,0.21274]
[1736704510901,3.2078,3292.0,3291.9,1.21056188]
[1736704511201,0.21272,3292.2,3291.9,1.21056188]
[1736704511403,1.85262,3292.3,3292.0,0.21273]
[1736704511797,2.63772188,3292.3,3291.9,0.99782188]
[1736704512198,0.21272,3292.2,3291.9,1.21055188]
[1736704513004,2.85044188,3292.3,3291.9,1.21055188]
[1736704513499,0.21272,3292.2,3291.9,0.21273]
[1736704513696,0.68213,3292.1,3291.8,4.75424]
[1736704513900,0.68213,3292.1,3291.8,4.29824]
[1736704514095,2.06360217,3292.0,3291.5,0.4709]
[1736704514304,0.21275,3291.7,3291.4,0.21277]
[1736704514502,0.4694,3291.6,3291.1,0.21279]
[1736704514695,0.21276,3291.5,3291.1,0.21279]
[1736704515003,0.4529,3291.4,3291.1,0.21279]
[1736704515703,0.4529,3291.4,3291.2,0.21278]
[1736704516205,0.66567,3291.4,3291.0,1.3895]
[1736704516402,0.66567,3291.4,3291.1,0.21278]
[1736704516799,0.4529,3291.4,3291.2,0.21278]
[1736704517706,0.4529,3291.4,3291.0,1.3895]
[1736704517907,0.66567,3291.4,3291.0,1.3895]
[1736704518111,0.4529,3291.4,3291.2,0.21278]
[1736704519100,0.4529,3291.4,3291.0,1.3895]
[1736704519409,0.66567,3291.4,3291.1,0.21279]
[1736704519613,0.4529,3291.4,3291.0,1.3895]
[1736704519803,0.4529,3291.4,3291.2,0.21278]
[1736704520505,0.4529,3291.4,3291.0,1.3895]
[1736704520708,2.1204,3291.6,3291.4,0.21277]
[1736704520908,2.1204,3291.6,3291.5,0.21276]
[1736704521411,2.1204,3291.6,3291.3,0.21277]
[1736704522097,2.1204,3291.6,3291.4,0.21277]
[1736704523610,0.9294,3291.6,3291.0,1.3895]
[1736704523813,3.2078,3291.8,3291.7,0.21275]
[1736704526804,3.2078,3291.9,3291.6,0.21275]
[1736704527007,0.4659,3291.8,3291.6,0.21275]
[1736704527208,0.4659,3291.8,3291.2,3.2078]
[1736704527715,0.4659,3291.8,3291.6,0.21275]
[1736704527912,0.4659,3291.8,3291.7,0.21275]
[1736704529715,1.193,3292.1,3291.2,3.2078]
[1736704530015,1.193,3292.1,3291.0,5.10349]
[1736704530016,0.8937,3292.2,3291.9,0.21273]
[1736704530204,0.8937,3292.2,3292.0,0.66913]
[1736704530409,0.8937,3292.2,3292.1,0.21273]
[1736704530606,0.4511,3292.2,3292.1,0.21273]
[1736704532113,1.193,3292.6,3292.4,0.2127]
[1736704532614,3.42049,3292.7,3292.4,0.2127]
[1736704532914,3.87929,3292.7,3292.4,0.2127]
[1736704533711,0.67149,3292.7,3292.4,0.2127]
[1736704534218,0.4588,3292.7,3292.0,3.6642]
[1736704534419,0.21269,3292.6,3292.3,0.21271]
[1736704534715,0.4588,3292.7,3292.0,3.6642]
[1736704534914,0.67149,3292.7,3292.4,0.2127]
[1736704535115,0.4588,3292.7,3292.4,0.2127]
[1736704535311,0.67149,3292.7,3292.4,0.2127]
[1736704535711,0.4588,3292.7,3292.4,0.2127]
[1736704536621,0.67149,3292.7,3292.3,0.21271]
[1736704536915,0.21272,3292.3,3292.0,3.6642]
[1736704537218,0.21272,3292.3,3291.7,2.99350217]
[1736704537219,0.21273,3292.1,3291.7,0.68535]
[1736704537715,0.21273,3292.0,3291.7,0.68535]
[1736704537914,0.21273,3292.0,3291.7,0.21275]
[1736704538323,0.21274,3291.9,3291.6,3.42055]
[1736704538510,0.21274,3291.9,3291.5,6.5798]
[1736704538511,0.21273,3292.1,3291.7,0.21275]
[1736704538715,0.21273,3292.0,3291.7,0.21275]
[1736704543523,0.21273,3292.0,3291.5,0.4448]
[1736704543926,0.21273,3292.0,3291.7,0.21275]
[1736704545026,0.21273,3292.0,3291.6,0.21275]
[1736704545221,0.21273,3292.0,3291.7,0.21275]
[1736704545420,0.21274,3291.9,3291.6,0.21276]
[1736704545622,3.25660217,3292.1,3291.5,0.4448]
[1736704545819,0.21275,3291.7,3291.4,4.4531744]
[1736704546128,1.60236,3291.6,3291.4,4.4531744]
[1736704547825,1.3896,3291.6,3291.4,4.2404044]
[1736704548222,1.3896,3291.6,3291.5,0.21276]
[1736704548223,1.60236,3291.6,3291.5,0.21276]
[1736704548425,1.3896,3291.6,3291.4,4.2404044]
[1736704548627,1.60236,3291.6,3291.5,0.21276]
[1736704549626,1.3896,3291.6,3291.4,4.2404044]
[1736704549926,1.60236,3291.6,3291.5,0.21276]
[1736704555929,1.3896,3291.6,3291.5,0.21276]
[1736704561937,1.60236,3291.6,3291.5,0.21276]
[1736704562132,1.3896,3291.6,3291.5,0.21276]
[1736704567732,1.3896,3291.6,3291.2,0.21278]
[1736704567733,5.59547688,3291.6,3291.2,0.21278]
[1736704567934,0.21279,3291.2,3291.1,0.21279]
[1736704568435,0.65729,3291.2,3291.1,0.21279]
[1736704568639,0.4445,3291.2,3290.9,3.2078]
[1736704568835,1.21087688,3291.0,3290.9,3.2078]
[1736704569036,0.21281,3290.8,3290.6,0.21282]
[1736704569236,0.99807688,3290.7,3290.6,0.21282]
[1736704569532,0.4445,3290.7,3290.6,0.21282]
[1736704575138,0.4445,3290.7,3290.5,0.42879564]
[1736704575342,0.4445,3290.7,3290.6,0.21282]
[1736704576440,0.65732,3290.7,3290.5,0.64161564]
[1736704578545,0.4445,3290.7,3290.5,0.42879564]
[1736704578745,3.2078,3291.1,3290.5,0.42879564]
[1736704578936,2.5855,3291.3,3291.2,0.21278]
[1736704579245,2.5855,3291.3,3290.8,3.2078]
[1736704579444,2.79828,3291.3,3291.1,0.21279]
[1736704580244,2.5855,3291.3,3291.1,0.21279]
[1736704580643,2.5855,3291.3,3291.2,0.21278]
[1736704581335,2.5855,3291.3,3290.8,3.2078]
[1736704581547,2.5855,3291.3,3291.1,0.21279]
[1736704581944,2.79828,3291.3,3291.1,0.21279]
[1736704582245,2.5855,3291.3,3291.1,0.21279]
[1736704585949,2.79828,3291.3,3291.1,0.21279]
[1736704590057,2.5855,3291.3,3291.2,0.21278]
[1736704590946,2.5855,3291.3,3291.0,0.4765]
[1736704591149,2.79828,3291.3,3291.0,0.68929]
[1736704591451,2.79828,3291.3,3291.1,0.21279]
[1736704591452,0.99841282,3291.2,3291.1,0.21279]
[1736704593255,0.99841282,3291.2,3291.0,0.21279]
[1736704593450,0.99841282,3291.2,3291.1,0.21279]
[1736704598259,1.3945,3291.3,3291.2,0.21278]
[1736704598447,1.3945,3291.3,3290.9,0.4635]
[1736704598651,1.3945,3291.3,3291.1,0.21279]
[1736704598852,1.3945,3291.3,3290.9,0.4635]
[1736704599049,1.3945,3291.3,3291.1,0.21278]
[1736704601971,1.60728,3291.3,3291.1,0.21278]
[1736704603057,1.3945,3291.3,3291.2,0.21278]
[1736704603257,1.3945,3291.3,3291.1,0.21279]
[1736704604568,1.3945,3291.3,3291.2,0.21278]
[1736704605366,0.9268,3291.3,3291.2,0.21278]
[1736704605568,0.4556,3291.8,3291.6,0.21275]
[1736704605765,0.9214,3291.8,3291.7,0.21275]
[1736704606177,0.9214,3291.8,3291.3,1.3522]
[1736704606371,0.21277,3291.4,3291.2,0.21278]
[1736704606568,1.88791282,3291.3,3291.2,0.21278]
[1736704606774,0.21278,3291.2,3291.0,3.42059]
[1736704606974,0.99841282,3291.1,3290.9,0.2128]
[1736704607475,0.99841282,3291.1,3290.8,0.8931]
[1736704607675,0.99841282,3291.1,3291.0,0.2128]
[1736704609271,0.4658,3291.2,3291.1,0.21279]
[1736704609977,0.4339,3291.3,3291.1,0.99841282]
[1736704610277,0.4362,3291.5,3291.4,0.21277]
[1736704611579,0.4362,3291.5,3291.2,0.4659]
[1736704611580,1.6592,3291.7,3291.6,0.21276]
[1736704611780,0.9116,3291.9,3291.8,0.21274]
[1736704612475,0.9116,3291.9,3291.6,0.4659]
[1736704612876,0.9116,3291.9,3291.7,0.21275]
[1736704613080,0.9116,3291.9,3291.6,0.4659]
[1736704613280,0.9116,3291.9,3291.7,0.21275]
[1736704614181,0.9116,3291.9,3291.8,0.21274]
[1736704614383,0.9116,3291.9,3291.7,0.21275]
[1736704615479,0.9116,3291.9,3291.6,0.4659]
[1736704615685,0.9116,3291.9,3291.8,0.21274]
[1736704618578,0.9116,3291.9,3291.6,0.4659]
[1736704618884,0.9116,3291.9,3291.8,0.21274]
[1736704618885,1.91001282,3291.9,3291.8,0.21274]
[1736704619680,1.91001282,3291.9,3291.6,0.4659]
[1736704619883,0.99841282,3291.7,3291.0,3.2078]
[1736704620083,0.99841282,3291.5,3291.3,0.21277]
[1736704620285,0.466,3291.4,3291.3,0.21277]
[1736704620485,0.9376,3291.4,3291.3,0.21277]
[1736704620687,0.9376,3291.4,3291.2,0.21278]
[1736704622988,0.466,3291.8,3291.2,0.99841282]
[1736704623182,0.4711,3291.7,3291.2,0.99841282]
[1736704623488,0.4711,3291.7,3291.6,0.21276]
[1736704623684,0.4711,3291.7,3291.5,0.21276]
[1736704624084,0.4711,3291.7,3291.6,0.21276]
[1736704624886,0.4711,3291.7,3291.5,0.21276]
[1736704625285,0.4711,3291.7,3291.6,0.21276]
[1736704629587,0.4711,3291.7,3291.1,0.53198]
[1736704629783,0.4711,3291.7,3291.6,0.21276]
[1736704637891,0.4711,3291.7,3291.4,3.2078]
[1736704638088,0.68606,3291.6,3291.4,3.42057]
[1736704638795,0.4733,3291.6,3291.4,3.42057]
[1736704641200,0.4733,3291.6,3291.4,3.2078]
[1736704641393,0.68606,3291.6,3291.4,3.42057]
[1736704643098,0.4733,3291.6,3291.4,3.2078]
[1736704643297,0.4733,3291.6,3291.5,0.21276]
[1736704652810,0.466,3291.8,3291.5,0.99809337]
[1736704653105,2.109,3292.2,3292.1,0.21272]
[1736704653297,3.78071337,3292.2,3291.8,0.21274]
[1736704653499,3.78071337,3292.2,3292.0,0.21273]
[1736704653807,1.3789,3292.2,3292.1,0.21272]
[1736704654105,0.4371,3292.2,3292.1,0.21272]
[1736704654406,0.67944778,3292.2,3292.1,0.21272]
[1736704678917,0.4371,3292.2,3292.1,0.21272]
[1736704679120,0.9081,3292.4,3292.3,0.21271]
[1736704680021,0.9081,3292.4,3292.2,0.21271]
[1736704680516,0.9081,3292.4,3292.0,0.4788]
[1736704680517,1.12081,3292.4,3292.1,0.21272]
[1736704680716,1.12081,3292.4,3292.0,0.4788]
[1736704680922,1.12081,3292.4,3292.2,0.21272]
[1736704681422,0.9081,3292.4,3292.2,0.21272]
[1736704681606,0.9081,3292.4,3292.0,0.4788]
[1736704681810,0.21271,3292.3,3292.1,0.21272]
[1736704682215,0.21273,3292.1,3291.9,0.21273]
[1736704682618,0.4629,3292.0,3291.9,0.21273]
[1736704683920,0.4629,3292.0,3291.8,3.2078]
[1736704684109,0.21275,3291.7,3291.5,0.21276]
[1736704684316,1.94359337,3291.9,3291.4,4.20589337]
[1736704684516,0.9455,3291.9,3291.8,0.21274]
[1736704685218,0.9455,3291.9,3291.7,0.21275]
[1736704685419,1.15824,3291.9,3291.7,0.21275]
[1736704685621,1.15824,3291.9,3291.6,0.99809337]
[1736704685622,0.9455,3291.9,3291.6,0.99809337]
[1736704685818,1.15824,3291.9,3291.7,0.21275]
[1736704687022,0.9455,3291.9,3291.6,0.99809337]
[1736704687219,1.15824,3291.9,3291.7,0.21275]
[1736704689715,0.9455,3291.9,3291.8,0.21274]
[1736704692425,1.15824,3291.9,3291.6,0.99809337]
[1736704692726,1.15824,3291.9,3291.8,0.21274]
[1736704693321,0.9455,3291.9,3291.8,0.21274]
[1736704707237,1.94359337,3291.9,3291.8,0.21274]
[1736704710231,0.21275,3291.7,3291.6,0.21276]
[1736704710427,4.41864337,3291.7,3291.6,0.21276]
[1736704710630,4.20589337,3291.7,3291.3,0.4814]
[1736704710926,3.2078,3291.7,3291.6,0.21276]
[1736704711737,4.20589337,3291.7,3291.6,0.21276]
[1736704714135,0.99809337,3291.7,3291.6,0.21276]
[1736704714533,1.19,3291.8,3291.7,0.21275]
[1736704714837,0.4655,3291.9,3291.8,0.21274]
[1736704715835,0.4612,3292.1,3291.7,1.91249337]
[1736704716030,0.4761,3292.3,3292.2,0.21272]
[1736704716234,1.19,3292.4,3291.9,0.99809337]
[1736704716235,1.19,3292.4,3292.3,0.21271]
[1736704716930,4.68199337,3292.6,3292.4,0.2127]
[1736704717231,5.87199337,3292.6,3292.4,0.2127]
[1736704717632,4.68199337,3292.6,3292.4,0.2127]
[1736704718643,1.47419337,3292.6,3292.4,0.2127]
[1736704720040,1.47419337,3292.6,3292.2,0.4698]
[1736704720344,0.99809337,3292.3,3292.2,0.68252]
[1736704723339,0.99809337,3292.5,3292.4,0.21271]
[1736704725651,0.99809337,3292.5,3292.3,0.21271]
[1736704726145,0.99809337,3292.5,3292.2,0.68252]
[1736704726344,1.21079337,3292.5,3292.2,0.68252]
[1736704726545,0.99809337,3292.5,3292.3,0.21271]
[1736704727939,1.21079337,3292.5,3292.2,0.21272]
[1736704728641,0.99809337,3292.5,3292.2,0.21272]
[1736704728945,0.21271,3292.4,3292.2,0.21272]
[1736704729539,0.21271,3292.4,3292.1,0.21272]
[1736704729939,0.438,3292.3,3292.1,0.21272]
[1736704730339,1.43609337,3292.3,3291.9,0.4475]
[1736704730646,1.43609337,3292.3,3291.9,0.21274]
[1736704730647,1.21082337,3292.1,3291.9,0.21274]
[1736704730846,0.4512,3292.0,3291.9,0.21274]
[1736704734642,0.66393,3292.0,3291.9,0.21274]
[1736704734841,0.4512,3292.0,3291.9,0.21274]
[1736704736939,0.66393,3292.0,3291.9,0.21274]
[1736704737943,0.4512,3292.0,3291.6,0.99809337]
[1736704738243,0.4512,3292.0,3291.3,0.9105]
[1736704738244,0.99809337,3291.7,3291.3,0.9105]
[1736704738446,0.4678,3291.6,3291.3,0.9105]
[1736704738748,0.4678,3291.6,3291.5,0.21276]
[1736704741349,0.4678,3291.6,3291.3,1.90859337]
[1736704741548,0.4678,3291.6,3291.5,0.21276]
[1736704750263,0.9158,3291.6,3291.5,0.21276]
[1736704755470,0.21277,3291.5,3291.3,2.12136337]
[1736704755670,0.9158,3291.6,3291.5,0.21276]
[1736704758575,1.3597,3291.6,3291.5,0.21276]
[1736704761379,1.3597,3291.6,3291.4,0.21277]
[1736704761576,0.99809337,3291.5,3291.1,2.953]